[Event "22nd Wasselonne Open 2018"]
[Site "Wasselonne"]
[Date "2018.08.03"]
[Round "3"]
[White "Bellahcene, Bilel"]
[Black "Cofman, Veaceslav"]
[Result "1-0"]
[ECO "A56"]
[WhiteElo "2507"]
[BlackElo "2198"]
[Annotator "ChessBase"]
[PlyCount "67"]
[EventDate "2018.08.02"]
[EventType "swiss"]
[EventCountry "FRA"]
[SourceTitle "playchess.com"]
[Source "ChessBase"]
[SourceQuality "1"]
[TimeControl "5400+30"]

1. d4 {[%emt 0:03:18]} Nf6 {[%emt 0:00:00]} 2. c4 {[%emt 0:00:03]} c5 {[%emt 0:00:00]} 3. Nf3 {[%emt 0:00:23]} e6 {[%emt 0:00:19]} 4. Nc3 {[%emt 0:00:46]} cxd4 {[%emt 0:01:25]} 5. Nxd4 {[%emt 0:00:04]} a6 {[%emt 0:00:06]} 6. e4 {[%emt 0:00:19]} d6 {[%emt 0:00:06]} 7. Be2 {[%emt 0:00:26]} Be7 {[%emt 0:00:15]} 8. f4 {[%emt 0:00:10]} Nc6 {[%emt 0:00:31]} 9. Be3 {[%emt 0:00:17]} O-O {[%emt 0:00:26]} 10. O-O {[%emt 0:00:14]} Bd7 {[%emt 0:00:59]} 11. Nb3 {[%emt 0:13:04]} b6 {[%emt 0:02:15]} 12. Bf3 {[%emt 0:02:35]} Rb8 {[%emt 0:00:31]} 13. g4 {[%emt 0:00:16]} Be8 {[%emt 0:00:33]} 14. e5 {[%emt 0:03:02]} dxe5 {[%emt 0:04:12]} 15. g5 {[%emt 0:00:15]} exf4 {[%emt 0:01:40]} 16. Bxf4 {[%emt 0:00:57]} Rc8 {[%emt 0:00:06]} 17. Qxd8 {[%emt 0:03:06]} Bxd8 {[%emt 0:00:31]} 18. gxf6 {[%emt 0:00:03]} Bxf6 {[%emt 0:00:14]} 19. Bd6 {[%emt 0:05:57]} Be7 {[%emt 0:00:17]} 20. Ne4 {[%emt 0:00:15]} f5 {[%emt 0:02:22]} 21. Bxe7 {[%emt 0:00:03]} Nxe7 {[%emt 0:00:06]} 22. Nd6 {[%emt 0:00:08]} Rc7 {[%emt 0:00:04]} 23. c5 {[%emt 0:01:15]} bxc5 {[%emt 0:00:20]} 24. Rac1 {[%emt 0:00:02]} Rd7 {[%emt 0:02:04]} 25. Rfd1 {[%emt 0:01:36]} Ra7 {[%emt 0:01:17]} 26. Nxc5 {[%emt 0:00:34]} e5 {[%emt 0:00:29]} 27. Be2 {[%emt 0:05:06]} Bg6 {[%emt 0:00:35]} 28. Bxa6 {[%emt 0:01:17]} e4 {[%emt 0:00:08]} 29. Bc4+ {[%emt 0:01:28]} Kh8 {[%emt 0:00:06]} 30. Ne6 {[%emt 0:00:01]} Rb8 {[%emt 0:00:17]} 31. Nf4 Nc6 {[%emt 0:00:50]} 32. Be2 {[%emt 0:01:20]} Ne5 {[%emt 0:00:17]} 33. Rc8+ {[%emt 0:00:15]} Rxc8 {[%emt 0:00:08]} 34. Nxc8 {[%emt 0:00:01]} 1-0

[Event "22nd Wasselonne Open 2018"]
[Site "Wasselonne"]
[Date "2018.08.03"]
[Round "3"]
[White "Lerch, Patrice"]
[Black "Thomas, Anysia"]
[Result "1/2-1/2"]
[ECO "A00"]
[WhiteElo "2388"]
[BlackElo "2168"]
[Annotator "NA"]
[PlyCount "83"]
[EventDate "2018.08.02"]
[EventType "swiss"]
[EventCountry "FRA"]
[SourceTitle "playchess.com"]
[Source "ChessBase"]
[SourceQuality "1"]
[TimeControl "5400+30"]

1. Nc3 {[%emt 0:11:57]} c5 {[%emt 0:01:20]} 2. g3 {[%emt 0:00:14]} g6 {[%emt 0:00:15]} 3. Bg2 {[%emt 0:00:06]} Bg7 {[%emt 0:00:12]} 4. d3 {[%emt 0:00:04]} Nc6 {[%emt 0:00:49]} 5. f4 {[%emt 0:00:05]} Rb8 {[%emt 0:02:30]} 6. a4 {[%emt 0:01:40]} d6 {[%emt 0:06:33]} 7. Bd2 {[%emt 0:02:05]} Nh6 {[%emt 0:02:05]} 8. Qc1 {[%emt 0:16:14]} Nf5 {[%emt 0:08:36]} 9. Nf3 {[%emt 0:03:08]} h5 {[%emt 0:05:04]} 10. e4 {[%emt 0:03:39]} Nfd4 {[%emt 0:00:58]} 11. Nd5 {[%emt 0:03:07]} Bg4 {[%emt 0:05:45]} 12. Ng1 {[%emt 0:15:02]} h4 {[%emt 0:09:36]} 13. Kf2 {[%emt 0:02:02]} Nb4 {[%emt 0:10:07]} 14. Bxb4 {[%emt 0:02:43]} cxb4 {[%emt 0:00:17]} 15. Qd2 {[%emt 0:02:33]} Rc8 {[%emt 0:09:58]} 16. Rc1 {[%emt 0:00:10]} a5 {[%emt 0:02:34]} 17. h3 {[%emt 0:03:33]} hxg3+ {[%emt 0:01:56]} 18. Kxg3 {[%emt 0:00:08]} Bd7 {[%emt 0:01:21]} 19. Nf3 {[%emt 0:04:53]} e6 {[%emt 0:03:21]} 20. Nxd4 {[%emt 0:01:45]} Bxd4 {[%emt 0:00:56]} 21. c3 {[%emt 0:00:26]} Qh4+ {[%emt 0:01:23]} 22. Kf3 {[%emt 0:00:16]} Ba7 {[%emt 0:08:23]} 23. Ne3 {[%emt 0:00:35]} e5 {[%emt 0:00:29]} 24. Nd5 {[%emt 0:05:11]} exf4 {[%emt 0:01:21]} 25. Qe1 {[%emt 0:00:08]} Qh5+ {[%emt 0:04:00]} 26. Kxf4 {[%emt 0:00:04]} g5+ {[%emt 0:00:46]} 27. Kg3 {[%emt 0:00:03]} Qh4+ {[%emt 0:00:11]} 28. Kf3 {[%emt 0:00:03]} g4+ {[%emt 0:03:49]} 29. Ke2 {[%emt 0:00:01]} g3 {[%emt 0:04:23]} 30. cxb4 {[%emt 0:03:04]} Qh5+ {[%emt 0:01:43]} 31. Bf3 {[%emt 0:00:12]} Qe5 {[%emt 0:01:15]} 32. Rxc8+ {[%emt 0:00:29]} Bxc8 {[%emt 0:00:07]} 33. Qc3 {[%emt 0:00:11]} Qxc3 {[%emt 0:00:16]} 34. bxc3 {[%emt 0:00:03]} Rxh3 {[%emt 0:00:38]} 35. Rxh3 {[%emt 0:00:50]} Bxh3 {[%emt 0:00:11]} 36. Nf4 {[%emt 0:01:05]} Bd7 {[%emt 0:00:42]} 37. b5 {[%emt 0:00:07]} Be6 {[%emt 0:00:47]} 38. Nxe6 {[%emt 0:05:03]} fxe6 {[%emt 0:00:09]} 39. e5 {[%emt 0:00:04]} dxe5 {[%emt 0:01:51]} 40. Bxb7 {[%emt 0:00:06]} Ke7 {[%emt 0:00:27]} 41. Bg2 {[%emt 0:00:12]} Kd6 {[%emt 0:00:31]} 42. Be4 {[%emt 0:01:00]} 1/2-1/2

[Event "22nd Wasselonne Open 2018"]
[Site "Wasselonne"]
[Date "2018.08.03"]
[Round "3"]
[White "Stephan, Victor"]
[Black "Soubirou, Oriane"]
[Result "1-0"]
[ECO "A84"]
[WhiteElo "2361"]
[BlackElo "2088"]
[Annotator "NA"]
[PlyCount "41"]
[EventDate "2018.08.02"]
[EventType "swiss"]
[EventCountry "FRA"]
[SourceTitle "playchess.com"]
[Source "ChessBase"]
[SourceQuality "1"]
[TimeControl "5400+30"]

1. d4 {[%emt 0:00:00]} e6 {[%emt 0:05:06]} 2. c4 {[%emt 0:00:33]} f5 {[%emt 0:00:09]} 3. Nc3 {[%emt 0:02:09]} Nf6 {[%emt 0:00:09]} 4. e3 {[%emt 0:00:51]} Bb4 {[%emt 0:00:29]} 5. Bd3 {[%emt 0:02:13]} O-O {[%emt 0:00:47]} 6. Nge2 {[%emt 0:00:36]} b6 {[%emt 0:00:31]} 7. O-O {[%emt 0:02:28]} Bb7 {[%emt 0:00:57]} 8. f3 {[%emt 0:00:28]} Bd6 {[%emt 0:08:47]} 9. Ng3 {[%emt 0:09:04]} c5 {[%emt 0:07:06]} 10. d5 {[%emt 0:04:18]} a6 {[%emt 0:01:59]} 11. f4 {[%emt 0:04:28]} b5 {[%emt 0:08:30]} 12. e4 {[%emt 0:03:09]} b4 {[%emt 0:02:49]} 13. Nce2 {[%emt 0:07:19]} fxe4 {[%emt 0:01:13]} 14. Nxe4 {[%emt 0:00:14]} Be7 {[%emt 0:03:49]} 15. N2g3 {[%emt 0:04:54]} Qb6 {[%emt 0:12:00]} 16. Nxf6+ {[%emt 0:09:25]} Bxf6 {[%emt 0:04:13]} 17. Qh5 {[%emt 0:04:31]} h6 {[%emt 0:00:08]} 18. Kh1 {[%emt 0:03:24]} a5 {[%emt 0:01:59]} 19. Qg6 {[%emt 0:01:35]} Na6 {[%emt 0:02:01]} 20. Nh5 {[%emt 0:03:04]} Rae8 {[%emt 0:05:00]} 21. Nxf6+ {Nb8} 1-0

[Event "22nd Wasselonne Open 2018"]
[Site "Wasselonne"]
[Date "2018.08.03"]
[Round "3"]
[White "Luba, Lukasz"]
[Black "Braeuning, Rudolf Wilhelm"]
[Result "1-0"]
[ECO "A50"]
[WhiteElo "2117"]
[BlackElo "2299"]
[Annotator "NA"]
[PlyCount "81"]
[EventDate "2018.08.02"]
[EventType "swiss"]
[EventCountry "FRA"]
[SourceTitle "playchess.com"]
[Source "ChessBase"]
[SourceQuality "1"]
[TimeControl "5400+30"]

1. d4 {[%emt 0:00:00]} Nf6 {[%emt 0:06:18]} 2. c4 {[%emt 0:01:07]} Nc6 {[%emt 0:05:16]} 3. Nc3 {[%emt 0:03:11]} e5 {[%emt 0:00:15]} 4. d5 {[%emt 0:02:58]} Ne7 {[%emt 0:00:27]} 5. e4 {[%emt 0:07:13]} Ng6 {[%emt 0:00:47]} 6. g3 {[%emt 0:04:41]} Bc5 {[%emt 0:07:42]} 7. h4 {[%emt 0:01:51]} h5 {[%emt 0:02:09]} 8. Be2 {[%emt 0:00:08]} d6 {[%emt 0:07:17]} 9. Bg5 {[%emt 0:00:12]} c6 {[%emt 0:00:17]} 10. Kf1 {[%emt 0:14:05]} Bd4 {[%emt 0:04:34]} 11. f4 {[%emt 0:10:25]} Bxg1 {[%emt 0:14:23]} 12. Rxg1 {[%emt 0:03:36]} Bh3+ {[%emt 0:03:53]} 13. Rg2 {[%emt 0:00:02]} cxd5 {[%emt 0:06:15]} 14. f5 {[%emt 0:14:07]} Ne7 {[%emt 0:04:54]} 15. Bxf6 {[%emt 0:00:07]} gxf6 {[%emt 0:00:10]} 16. cxd5 {[%emt 0:00:04]} Rg8 {[%emt 0:02:32]} 17. Qe1 {[%emt 0:05:38]} Nc8 {[%emt 0:09:28]} 18. Kg1 {[%emt 0:09:06]} Bxg2 {[%emt 0:00:24]} 19. Kxg2 {[%emt 0:00:02]} Nb6 {[%emt 0:01:29]} 20. Bxh5 {[%emt 0:04:24]} Rc8 {[%emt 0:01:15]} 21. Be2 {[%emt 0:02:03]} Ke7 {[%emt 0:00:25]} 22. Qf2 {[%emt 0:00:25]} a6 {[%emt 0:02:13]} 23. Re1 {[%emt 0:02:22]} Qc7 {[%emt 0:03:03]} 24. Bd3 {[%emt 0:00:05]} Nd7 {[%emt 0:01:01]} 25. Kh3 {[%emt 0:00:32]} Nc5 {[%emt 0:00:43]} 26. Bb1 {[%emt 0:00:02]} b5 {[%emt 0:04:49]} 27. Ne2 {[%emt 0:00:38]} Na4 {[%emt 0:01:39]} 28. b3 {[%emt 0:02:15]} Nc5 {[%emt 0:06:58]} 29. g4 {[%emt 0:01:08]} Qa5 {[%emt 0:00:09]} 30. Rd1 {[%emt 0:01:27]} Nd7 {[%emt 0:00:53]} 31. Qe3 {[%emt 0:00:40]} Qb4 {[%emt 0:00:41]} 32. g5 {[%emt 0:03:54]} fxg5 {[%emt 0:00:38]} 33. hxg5 {[%emt 0:00:02]} Rh8+ {[%emt 0:00:11]} 34. Kg2 {[%emt 0:01:00]} Rcg8 {[%emt 0:01:14]} 35. Ng3 {[%emt 0:00:27]} Qc5 {[%emt 0:00:45]} 36. f6+ {[%emt 0:00:33]} Kf8 {[%emt 0:02:10]} 37. Rc1 {[%emt 0:00:14]} Rh4 {[%emt 0:00:38]} 38. b4 {[%emt 0:00:20]} Qc4 {[%emt 0:00:29]} 39. Rxc4 {[%emt 0:00:07]} bxc4 {[%emt 0:00:03]} 40. Qa7 {[%emt 0:00:11]} Nxf6 {[%emt 0:01:00]} 41. gxf6 {[%emt 0:00:07]} 1-0

[Event "22nd Wasselonne Open 2018"]
[Site "Wasselonne"]
[Date "2018.08.04"]
[Round "6"]
[White "Kurayan, Ruslan"]
[Black "Briet, Antoine"]
[Result "1-0"]
[ECO "B43"]
[WhiteElo "2386"]
[BlackElo "2208"]
[Annotator "NA"]
[PlyCount "77"]
[EventDate "2018.08.02"]
[EventType "swiss"]
[EventCountry "FRA"]
[SourceTitle "playchess.com"]
[Source "ChessBase"]
[SourceQuality "1"]
[TimeControl "5400+30"]

1. e4 {[%emt 0:00:00]} c5 {[%emt 0:00:00]} 2. Nf3 {[%emt 0:00:00]} e6 {[%emt 0:00:00]} 3. d4 {[%emt 0:00:00]} cxd4 {[%emt 0:00:00]} 4. Nxd4 {[%emt 0:00:00]} a6 {[%emt 0:00:03]} 5. Nc3 {[%emt 0:00:57]} Qc7 {[%emt 0:00:06]} 6. Bd3 {[%emt 0:08:25]} Nf6 {[%emt 0:00:33]} 7. O-O {[%emt 0:00:51]} Bc5 {[%emt 0:00:07]} 8. Nb3 {[%emt 0:00:14]} Be7 {[%emt 0:00:07]} 9. f4 {[%emt 0:03:29]} d6 {[%emt 0:00:08]} 10. e5 {[%emt 0:00:20]} dxe5 {[%emt 0:01:36]} 11. fxe5 {[%emt 0:04:28]} Nfd7 {[%emt 0:02:47]} 12. Qg4 {[%emt 0:01:28]} g6 {[%emt 0:05:55]} 13. Bh6 {[%emt 0:07:39]} Bf8 {[%emt 0:08:14]} 14. Qh3 {[%emt 0:33:44]} Nxe5 {[%emt 0:03:58]} 15. Rae1 {[%emt 0:07:29]} Nbd7 {[%emt 0:02:39]} 16. Ne4 {[%emt 0:05:29]} b5 {[%emt 0:02:18]} 17. Bxf8 {[%emt 0:05:20]} Rxf8 {[%emt 0:03:30]} 18. Ng5 {[%emt 0:00:24]} Bb7 {[%emt 0:03:00]} 19. Nxe6 {[%emt 0:01:03]} Qb6+ {[%emt 0:02:34]} 20. Ned4 {[%emt 0:03:24]} Bd5 {[%emt 0:17:20]} 21. Kh1 {[%emt 0:01:26]} f6 {[%emt 0:04:21]} 22. Be4 {[%emt 0:00:30]} Bxe4 {[%emt 0:02:02]} 23. Rxe4 {[%emt 0:00:11]} f5 {[%emt 0:01:22]} 24. Re2 {[%emt 0:05:02]} O-O-O {[%emt 0:18:05]} 25. Rfe1 {[%emt 0:00:03]} Rde8 {[%emt 0:08:32]} 26. Qc3+ {[%emt 0:02:30]} Kd8 {[%emt 0:03:38]} 27. Na5 {[%emt 0:00:43]} Rf6 {[%emt 0:09:27]} 28. Ndc6+ {[%emt 0:00:55]} Nxc6 {[%emt 0:00:56]} 29. Rxe8+ {[%emt 0:00:26]} Kc7 {[%emt 0:00:02]} 30. R1e6 {[%emt 0:01:14]} b4 {[%emt 0:00:57]} 31. Qxc6+ {[%emt 0:00:37]} Qxc6 {[%emt 0:00:01]} 32. Nxc6 {[%emt 0:00:09]} Rxe6 {[%emt 0:00:12]} 33. Rxe6 {[%emt 0:00:11]} Nc5 {[%emt 0:00:03]} 34. Nd4 {[%emt 0:00:10]} Nxe6 {[%emt 0:00:01]} 35. Nxe6+ {[%emt 0:00:06]} Kd6 {[%emt 0:00:04]} 36. Nf8 {[%emt 0:00:29]} Ke5 {[%emt 0:00:21]} 37. Kg1 {[%emt 0:00:05]} a5 {[%emt 0:00:23]} 38. Kf2 {[%emt 0:00:32]} Kd4 {[%emt 0:00:22]} 39. Ke2 {[%emt 0:00:27]} 1-0

[Event "22nd Wasselonne Open 2018"]
[Site "Wasselonne"]
[Date "2018.08.04"]
[Round "6"]
[White "Msellek, Ilyass"]
[Black "Kilthau, Peter"]
[Result "1-0"]
[ECO "D05"]
[WhiteElo "2242"]
[BlackElo "1823"]
[Annotator "NA"]
[PlyCount "67"]
[EventDate "2018.08.02"]
[EventType "swiss"]
[EventCountry "FRA"]
[SourceTitle "playchess.com"]
[Source "ChessBase"]
[SourceQuality "1"]
[TimeControl "5400+30"]

1. Nf3 {[%emt 0:01:23]} d5 {[%emt 0:00:07]} 2. d4 {[%emt 0:00:04]} Nf6 {[%emt 0:00:16]} 3. e3 {[%emt 0:00:05]} e6 {[%emt 0:02:18]} 4. Bd3 {[%emt 0:00:26]} c5 {[%emt 0:00:45]} 5. b3 {[%emt 0:00:05]} Nc6 {[%emt 0:00:12]} 6. Bb2 {[%emt 0:00:06]} cxd4 {[%emt 0:00:16]} 7. exd4 {[%emt 0:00:16]} Bd6 {[%emt 0:00:32]} 8. O-O {[%emt 0:00:07]} O-O {[%emt 0:03:41]} 9. Nbd2 {[%emt 0:05:39]} Re8 {[%emt 0:05:59]} 10. Re1 {[%emt 0:02:26]} Nb4 {[%emt 0:03:06]} 11. Bf1 {[%emt 0:00:59]} Bd7 {[%emt 0:00:41]} 12. Ne5 {[%emt 0:06:40]} Rc8 {[%emt 0:03:40]} 13. c4 {[%emt 0:01:18]} b6 {[%emt 0:09:15]} 14. a3 {[%emt 0:03:24]} Nc6 {[%emt 0:04:38]} 15. Bd3 {[%emt 0:00:26]} Ne7 {[%emt 0:10:25]} 16. Ndf3 {[%emt 0:03:40]} Bc6 {[%emt 0:00:47]} 17. Ng5 {[%emt 0:03:28]} Rf8 {[%emt 0:01:02]} 18. Qc2 {[%emt 0:06:03]} Ng6 {[%emt 0:12:39]} 19. h4 {[%emt 0:21:42]} Bxe5 {[%emt 0:02:48]} 20. dxe5 {[%emt 0:00:47]} Ne4 {[%emt 0:00:10]} 21. Nxe4 {[%emt 0:01:11]} dxe4 {[%emt 0:00:09]} 22. Bxe4 {[%emt 0:00:08]} Bxe4 {[%emt 0:03:31]} 23. Rxe4 {[%emt 0:00:45]} Nxh4 {[%emt 0:00:48]} 24. Rd1 {[%emt 0:12:45]} Qg5 {[%emt 0:00:31]} 25. g3 {[%emt 0:00:24]} Ng6 {[%emt 0:00:38]} 26. Bc1 {[%emt 0:02:13]} Qe7 {[%emt 0:05:14]} 27. f4 {[%emt 0:04:47]} Rfd8 {[%emt 0:02:37]} 28. Red4 {[%emt 0:07:58]} Qc5 {[%emt 0:07:05]} 29. Be3 {[%emt 0:00:59]} Rxd4 {[%emt 0:00:33]} 30. Rxd4 {[%emt 0:01:24]} Qxa3 {[%emt 0:00:12]} 31. c5 {[%emt 0:00:07]} bxc5 {[%emt 0:03:24]} 32. Ra4 {[%emt 0:00:10]} Qa1+ 33. Kg2 Qe1 34. Bf2 1-0

[Event "22nd Wasselonne Open 2018"]
[Site "Wasselonne"]
[Date "2018.08.04"]
[Round "6"]
[White "Kuhn, Clement"]
[Black "Stephan, Victor"]
[Result "0-1"]
[ECO "B12"]
[WhiteElo "2023"]
[BlackElo "2361"]
[Annotator "NA"]
[PlyCount "110"]
[EventDate "2018.08.02"]
[EventType "swiss"]
[EventCountry "FRA"]
[SourceTitle "playchess.com"]
[Source "ChessBase"]
[SourceQuality "1"]
[TimeControl "5400+30"]

1. e4 {[%emt 0:00:00]} c6 {[%emt 0:00:00]} 2. d4 {[%emt 0:00:00]} d5 {[%emt 0:00:14]} 3. e5 {[%emt 0:00:19]} Bf5 {[%emt 0:00:15]} 4. h4 {[%emt 0:00:31]} h5 {[%emt 0:01:29]} 5. Bd3 {[%emt 0:00:35]} Bxd3 {[%emt 0:00:51]} 6. Qxd3 {[%emt 0:00:15]} e6 {[%emt 0:00:17]} 7. Bg5 {[%emt 0:01:39]} Qa5+ {[%emt 0:00:50]} 8. Nd2 {[%emt 0:02:41]} Qa6 {[%emt 0:00:20]} 9. Qxa6 {[%emt 0:01:21]} Nxa6 {[%emt 0:00:20]} 10. c3 {[%emt 0:02:52]} Ne7 {[%emt 0:06:52]} 11. Ngf3 {[%emt 0:04:40]} c5 {[%emt 0:02:45]} 12. O-O {[%emt 0:05:57]} Nf5 {[%emt 0:03:14]} 13. a3 {[%emt 0:04:56]} Be7 {[%emt 0:03:12]} 14. Bxe7 {[%emt 0:02:05]} Kxe7 {[%emt 0:02:58]} 15. b4 {[%emt 0:18:22]} cxd4 {[%emt 0:04:18]} 16. cxd4 {[%emt 0:00:38]} Rac8 {[%emt 0:01:02]} 17. Rfc1 {[%emt 0:02:10]} b6 {[%emt 0:03:31]} 18. b5 {[%emt 0:02:14]} Nb8 {[%emt 0:01:20]} 19. Rab1 {[%emt 0:03:28]} Nd7 {[%emt 0:03:23]} 20. a4 {[%emt 0:11:50]} f6 {[%emt 0:01:23]} 21. a5 {[%emt 0:03:56]} fxe5 {[%emt 0:05:02]} 22. axb6 {[%emt 0:05:36]} axb6 {[%emt 0:00:56]} 23. Nxe5 {[%emt 0:01:57]} Nxe5 {[%emt 0:07:26]} 24. dxe5 {[%emt 0:01:24]} Nd4 {[%emt 0:00:34]} 25. Kf1 {[%emt 0:02:46]} Rc5 {[%emt 0:03:41]} 26. Ra1 {[%emt 0:04:34]} Ra8 {[%emt 0:03:59]} 27. f3 {[%emt 0:03:40]} Nxb5 {[%emt 0:03:46]} 28. Rxa8 {[%emt 0:01:00]} Rxc1+ {[%emt 0:00:07]} 29. Ke2 {[%emt 0:00:44]} Nd4+ {[%emt 0:03:12]} 30. Ke3 {[%emt 0:02:52]} Nf5+ {[%emt 0:02:07]} 31. Ke2 {[%emt 0:00:07]} Rc7 {[%emt 0:01:33]} 32. Rb8 {[%emt 0:01:40]} Nxh4 {[%emt 0:00:42]} 33. g3 {[%emt 0:00:46]} Ng6 {[%emt 0:00:42]} 34. f4 {[%emt 0:01:09]} h4 {[%emt 0:00:41]} 35. Rxb6 {[%emt 0:01:11]} hxg3 {[%emt 0:00:45]} 36. Kf3 {[%emt 0:02:25]} g2 {[%emt 0:01:20]} 37. Kxg2 {[%emt 0:00:06]} Rc2 {[%emt 0:00:46]} 38. f5 {[%emt 0:00:15]} Rxd2+ {[%emt 0:00:49]} 39. Kf1 {[%emt 0:00:07]} Nf8 {[%emt 0:00:53]} 40. Rb7+ {[%emt 0:01:14]} Nd7 {[%emt 0:00:33]} 41. f6+ {[%emt 0:00:55]} gxf6 {[%emt 0:00:10]} 42. exf6+ {[%emt 0:00:09]} Kxf6 {[%emt 0:00:39]} 43. Rxd7 {[%emt 0:00:06]} Ke5 {[%emt 0:00:18]} 44. Ke1 {[%emt 0:00:05]} Rh2 {[%emt 0:00:18]} 45. Re7 {[%emt 0:00:29]} d4 {[%emt 0:00:20]} 46. Re8 {[%emt 0:00:18]} Kd5 {[%emt 0:00:13]} 47. Rd8+ {[%emt 0:00:28]} Ke4 {[%emt 0:00:12]} 48. Ra8 {[%emt 0:00:32]} Ke3 {[%emt 0:00:29]} 49. Kf1 {[%emt 0:00:41]} e5 {[%emt 0:00:18]} 50. Kg1 {[%emt 0:00:50]} Rb2 {[%emt 0:00:20]} 51. Ra5 {[%emt 0:00:35]} e4 {[%emt 0:00:16]} 52. Ra3+ {[%emt 0:00:13]} d3 {[%emt 0:00:11]} 53. Ra4 {[%emt 0:00:07]} Rb1+ {[%emt 0:00:21]} 54. Kg2 {[%emt 0:00:05]} d2 {[%emt 0:00:09]} 55. Ra3+ {[%emt 0:00:06]} Kf4 {[%emt 0:00:14]} 0-1

[Event "22nd Wasselonne Open 2018"]
[Site "Wasselonne"]
[Date "2018.08.05"]
[Round "7"]
[White "Lerch, Patrice"]
[Black "Bohlsen, Linus"]
[Result "1-0"]
[ECO "A00"]
[WhiteElo "2388"]
[BlackElo "2001"]
[Annotator "NA"]
[PlyCount "107"]
[EventDate "2018.08.02"]
[EventType "swiss"]
[EventCountry "FRA"]
[SourceTitle "playchess.com"]
[Source "ChessBase"]
[SourceQuality "1"]
[TimeControl "5400+30"]

1. Nc3 {[%emt 0:07:35]} d5 {[%emt 0:01:44]} 2. Nf3 {[%emt 0:03:26]} Nf6 {[%emt 0:01:10]} 3. g3 {[%emt 0:01:41]} g6 {[%emt 0:01:08]} 4. Bg2 {[%emt 0:00:20]} Bg7 {[%emt 0:00:14]} 5. O-O {[%emt 0:00:12]} O-O {[%emt 0:00:36]} 6. d3 {[%emt 0:00:04]} c5 {[%emt 0:03:50]} 7. Bg5 {[%emt 0:00:41]} Nc6 {[%emt 0:02:43]} 8. Qd2 {[%emt 0:05:25]} Re8 {[%emt 0:12:42]} 9. Rab1 {[%emt 0:14:28]} Rb8 {[%emt 0:06:36]} 10. a3 {[%emt 0:04:34]} b5 {[%emt 0:07:33]} 11. Rfd1 {[%emt 0:12:02]} b4 {[%emt 0:10:59]} 12. axb4 {[%emt 0:02:22]} cxb4 {[%emt 0:06:29]} 13. Na4 {[%emt 0:00:22]} Qa5 {[%emt 0:02:21]} 14. Ra1 {[%emt 0:02:33]} e5 {[%emt 0:04:04]} 15. Bh6 {[%emt 0:05:24]} Bb7 {[%emt 0:09:41]} 16. Bxg7 {[%emt 0:06:24]} Kxg7 {[%emt 0:00:05]} 17. e3 {[%emt 0:03:25]} Qb5 {[%emt 0:04:44]} 18. d4 {[%emt 0:02:21]} e4 {[%emt 0:03:40]} 19. Ne1 {[%emt 0:02:21]} Nd7 {[%emt 0:05:28]} 20. Rdc1 {[%emt 0:01:56]} Na5 {[%emt 0:01:23]} 21. Bf1 {[%emt 0:01:18]} Nc4 {[%emt 0:03:52]} 22. b3 {[%emt 0:00:20]} Nxd2 {[%emt 0:00:05]} 23. Bxb5 {[%emt 0:00:04]} Bc8 {[%emt 0:01:51]} 24. Bxd7 {[%emt 0:00:47]} Bxd7 {[%emt 0:00:05]} 25. Nc5 {[%emt 0:00:04]} Bg4 {[%emt 0:01:52]} 26. Rxa7 {[%emt 0:00:06]} Ra8 {[%emt 0:00:33]} 27. Rca1 {[%emt 0:00:21]} Rxa7 {[%emt 0:00:11]} 28. Rxa7 {[%emt 0:00:03]} Bd1 {[%emt 0:00:53]} 29. Na6 {[%emt 0:01:46]} Rc8 {[%emt 0:02:54]} 30. Nxb4 {[%emt 0:00:23]} Nxb3 {[%emt 0:02:11]} 31. cxb3 {[%emt 0:04:04]} Rc1 {[%emt 0:00:07]} 32. Kg2 {[%emt 0:00:09]} Bxb3 {[%emt 0:01:29]} 33. Nec2 {[%emt 0:00:30]} Rxc2 {[%emt 0:01:04]} 34. Nxc2 {[%emt 0:00:06]} Bxc2 {[%emt 0:00:04]} 35. Rd7 {[%emt 0:03:29]} Bb3 {[%emt 0:00:06]} 36. f3 {[%emt 0:00:03]} exf3+ {[%emt 0:01:23]} 37. Kxf3 {[%emt 0:00:05]} Kf6 {[%emt 0:01:01]} 38. e4 {[%emt 0:00:44]} Ke6 {[%emt 0:00:30]} 39. Ra7 {[%emt 0:00:19]} dxe4+ {[%emt 0:01:20]} 40. Kxe4 {[%emt 0:00:08]} Bd5+ {[%emt 0:00:05]} 41. Kf4 {[%emt 0:00:13]} h6 {[%emt 0:00:48]} 42. Ra6+ {[%emt 0:00:12]} Ke7 {[%emt 0:00:29]} 43. Ke5 {[%emt 0:00:17]} Be6 {[%emt 0:00:21]} 44. Ra7+ {[%emt 0:00:40]} Bd7 {[%emt 0:00:06]} 45. Rxd7+ {[%emt 0:00:15]} Kxd7 {[%emt 0:00:06]} 46. Kf6 {[%emt 0:00:03]} Ke8 {[%emt 0:00:04]} 47. h4 {[%emt 0:00:24]} Kf8 {[%emt 0:01:24]} 48. d5 {[%emt 0:00:08]} Ke8 {[%emt 0:00:04]} 49. d6 {[%emt 0:00:05]} g5 {[%emt 0:00:28]} 50. hxg5 {[%emt 0:01:22]} hxg5 {[%emt 0:00:05]} 51. Kxg5 {[%emt 0:00:07]} Kd7 {[%emt 0:00:18]} 52. Kf6 {[%emt 0:00:03]} Kxd6 {[%emt 0:00:04]} 53. Kxf7 {[%emt 0:00:03]} Ke5 {[%emt 0:00:19]} 54. Kg6 {[%emt 0:00:04]} 1-0

[Event "22nd Wasselonne Open 2018"]
[Site "Wasselonne"]
[Date "2018.08.05"]
[Round "7"]
[White "Stephan, Victor"]
[Black "Kurayan, Ruslan"]
[Result "1/2-1/2"]
[ECO "E84"]
[WhiteElo "2361"]
[BlackElo "2386"]
[Annotator "NA"]
[PlyCount "69"]
[EventDate "2018.08.02"]
[EventType "swiss"]
[EventCountry "FRA"]
[SourceTitle "playchess.com"]
[Source "ChessBase"]
[SourceQuality "1"]
[TimeControl "5400+30"]

1. d4 {[%emt 0:00:00]} Nf6 {[%emt 0:00:00]} 2. c4 {[%emt 0:00:00]} g6 {[%emt 0:00:00]} 3. Nc3 {[%emt 0:00:22]} Bg7 {[%emt 0:00:02]} 4. e4 {[%emt 0:00:18]} d6 {[%emt 0:00:07]} 5. f3 {[%emt 0:01:18]} O-O {[%emt 0:01:00]} 6. Be3 {[%emt 0:00:13]} Nc6 {[%emt 0:00:07]} 7. Nge2 {[%emt 0:00:54]} a6 {[%emt 0:00:09]} 8. Qd2 {[%emt 0:00:13]} Rb8 {[%emt 0:00:23]} 9. Rc1 {[%emt 0:00:55]} Ne8 {[%emt 0:19:38]} 10. h4 {[%emt 0:07:24]} f5 {[%emt 0:06:38]} 11. h5 {[%emt 0:05:10]} e5 {[%emt 0:05:59]} 12. hxg6 {[%emt 0:06:56]} hxg6 {[%emt 0:00:38]} 13. dxe5 {[%emt 0:11:48]} Nxe5 {[%emt 0:10:07]} 14. exf5 {[%emt 0:08:43]} Bxf5 {[%emt 0:03:36]} 15. Nd4 {[%emt 0:03:28]} Bd7 {[%emt 0:07:14]} 16. Be2 {[%emt 0:03:52]} Qe7 {[%emt 0:12:46]} 17. Nd5 {[%emt 0:05:29]} Qf7 {[%emt 0:00:33]} 18. Bg5 {[%emt 0:02:12]} Nf6 {[%emt 0:02:48]} 19. Nxc7 {[%emt 0:04:00]} Nc6 {[%emt 0:14:25]} 20. Nb3 {[%emt 0:06:04]} Rbc8 {[%emt 0:06:40]} 21. Nd5 {[%emt 0:02:12]} Nxd5 {[%emt 0:00:13]} 22. cxd5 {[%emt 0:00:34]} Ne7 {[%emt 0:00:17]} 23. O-O {[%emt 0:04:37]} Nxd5 {[%emt 0:00:27]} 24. Rxc8 {[%emt 0:02:58]} Rxc8 {[%emt 0:01:24]} 25. Rd1 {[%emt 0:00:05]} Be6 {[%emt 0:00:17]} 26. Nd4 {[%emt 0:00:49]} Bd7 {[%emt 0:00:14]} 27. Nb3 {[%emt 0:03:35]} Be6 {[%emt 0:00:06]} 28. Nd4 {[%emt 0:04:51]} Bd7 {[%emt 0:00:05]} 29. Nb3 {[%emt 0:00:04]} Be6 30. Nd4 Nc7 31. Nxe6 Nxe6 32. Be3 Be5 33. b3 b5 34. Bd3 Nf4 35. Be4 1/2-1/2